fUST/lending_fUST_20250720
["ID","MTS","AMOUNT","RATE_DAILY","PERIOD"]
[373432921,1753007432895,-151.0,0.00018058,2]
[373432922,1753007432904,-151.0,0.00018058,2]
[373432923,1753007432914,-460.0,0.00018058,2]
[373432924,1753007432923,-460.0,0.00018058,2]
[373432925,1753007432932,-458.0,0.00018059,2]
[373432926,1753007432941,-500.0,0.00018059,2]
[373432927,1753007432951,-500.0,0.00018059,2]
[373432928,1753007432960,-500.0,0.00018059,2]
[373432929,1753007432970,-151.0,0.00018059,2]
[373432930,1753007432979,-151.0,0.00018059,2]
[373432931,1753007432988,-612.65,0.00018329,2]
[373432932,1753007432997,-460.0,0.00018329,2]
[373432933,1753007433006,-562.04,0.00018329,2]
[373432934,1753007433016,-460.0,0.00018329,2]
[373432935,1753007433026,-460.0,0.00018329,2]
[373432936,1753007433037,-460.0,0.00018331,2]
[373432937,1753007433048,-500.0,0.00018331,2]
[373432938,1753007433058,-460.0,0.00018331,2]
[373432939,1753007433068,-1071.89,0.00018331,2]
[373432940,1753007433078,-460.0,0.00018331,2]
[373432941,1753007433087,-4435.03,0.00018331,2]
[373432942,1753007433097,-474.32,0.00018331,2]
[373432943,1753007433107,-460.0,0.00018331,2]
[373432944,1753007433116,-591.0,0.00018332,2]
[373432945,1753007433126,-151.0,0.00018332,2]
[373432946,1753007433139,-151.0,0.00018332,2]
[373432947,1753007433148,-500.0,0.00018332,2]
[373432948,1753007433157,-151.0,0.00018332,2]
[373432949,1753007433167,-151.0,0.00018332,2]
[373432950,1753007433176,-168.83630172,0.00018332,2]
[373432951,1753007433186,-191.15759495,0.00018332,2]
[373432952,1753007433195,-460.0,0.00018332,2]
[373432953,1753007433205,-502.68,0.00018332,2]
[373432954,1753007433214,-460.0,0.00018332,2]
[373432955,1753007433224,-911.02,0.00018332,2]
[373432956,1753007433234,-460.0,0.00018332,2]
[373432957,1753007433243,-460.0,0.00018332,2]
[373432958,1753007433253,-1419.48,0.00018332,2]
[373432959,1753007433263,-460.0,0.00018332,2]
[373432960,1753007433273,-460.0,0.00018332,2]
[373432961,1753007433283,-460.0,0.00018332,2]
[373432962,1753007433293,-502.02656241,0.00018332,2]
[373432963,1753007433303,-362.42839026,0.00018332,2]
[373432964,1753007433312,-458.0,0.00018333,2]
[373432965,1753007433322,-500.0,0.00018333,2]
[373432966,1753007433333,-500.0,0.00018333,2]
[373432967,1753007433348,-500.0,0.00018333,2]
[373432968,1753007433357,-151.0,0.00018333,2]
[373432969,1753007433368,-245.07286891,0.00018333,2]
[373432970,1753007433379,-612.65,0.00018603,2]
[373432971,1753007433388,-460.0,0.00018603,2]
[373432972,1753007433399,-562.04,0.00018603,2]
[373432973,1753007433408,-460.0,0.00018603,2]
[373432974,1753007433420,-398.98,0.00018603,2]
[373432975,1753007433430,-460.0,0.00018605,2]
[373432976,1753007433440,-1071.89,0.00018605,2]
[373432977,1753007433450,-460.0,0.00018605,2]
[373432978,1753007433460,-4435.03,0.00018605,2]
[373432979,1753007433470,-474.32,0.00018605,2]
[373432980,1753007433480,-460.0,0.00018605,2]
[373432981,1753007433489,-591.0,0.00018606,2]
[373432982,1753007433499,-151.0,0.00018606,2]
[373432983,1753007433508,-200.31747799,0.00018606,2]
[373432984,1753007433519,-304.94878946,0.00018606,2]
[373432985,1753007433530,-293.278932,0.00018606,2]
[373432986,1753007433539,-151.0,0.00018606,2]
[373432987,1753007433549,-460.0,0.00018606,2]
[373432988,1753007433559,-502.68,0.00018606,2]
[373432989,1753007433569,-460.0,0.00018606,2]
[373432990,1753007433579,-911.02,0.00018606,2]
[373432991,1753007433588,-460.0,0.00018606,2]
[373432992,1753007433598,-460.0,0.00018606,2]
[373432993,1753007433607,-1419.48,0.00018606,2]
[373432994,1753007433616,-380.47,0.00018606,2]
[373432995,1753007433625,-460.0,0.00018606,2]
[373432996,1753007433635,-460.0,0.00018606,2]
[373432997,1753007433644,-458.0,0.00018607,2]
[373432998,1753007433654,-500.0,0.00018607,2]
[373432999,1753007433664,-500.0,0.00018607,2]
[373433000,1753007433674,-500.0,0.00018607,2]
[373433001,1753007433683,-500.0,0.00018607,2]
[373433002,1753007433694,-151.0,0.00018607,2]
[373433003,1753007433704,-151.0,0.00018607,2]
[373433004,1753007433713,-151.0,0.00018607,2]
[373433005,1753007433724,-6759.05656064,0.00018616,2]
[373433006,1753007433734,-6759.05656064,0.00018731,2]
[373433007,1753007433744,-612.65,0.00018877,2]
[373433008,1753007433754,-562.04,0.00018877,2]
[373433009,1753007433763,-460.0,0.00018877,2]
[373433010,1753007433773,-460.0,0.00018879,2]
[373433011,1753007433783,-175.0,0.00018879,2]
[373433012,1753007433792,-1071.89,0.00018879,2]
[373433013,1753007433801,-460.0,0.00018879,2]
[373433014,1753007433810,-4135.68667751,0.00018879,2]
[373433015,1753007433823,-299.34332249,0.00018879,2]
[373433016,1753007433833,-474.32,0.00018879,2]
[373433017,1753007433843,-460.0,0.00018879,2]
[373433018,1753007433852,-591.0,0.0001888,2]
[373433019,1753007433862,-199.38279011,0.0001888,2]
[373433020,1753007433872,-151.0,0.0001888,2]
[373433021,1753007433882,-460.0,0.0001888,2]
[373433022,1753007433892,-502.68,0.0001888,2]
[373433023,1753007433902,-460.0,0.0001888,2]
[373433024,1753007433911,-911.02,0.0001888,2]
[373433025,1753007433921,-460.0,0.0001888,2]
[373433026,1753007433930,-460.0,0.0001888,2]
[373433027,1753007433939,-1419.48,0.0001888,2]
[373433028,1753007433948,-590.63,0.0001888,2]
[373433029,1753007433957,-460.0,0.0001888,2]
[373433030,1753007433967,-458.0,0.00018881,2]
[373433031,1753007433976,-500.0,0.00018881,2]
[373433032,1753007433986,-153.67888106,0.00018881,2]
[373433033,1753007433996,-349.0,0.00018881,2]
[373433034,1753007434005,-500.0,0.00018881,2]
[373433035,1753007434015,-151.0,0.00018881,2]
[373433036,1753007434024,-151.0,0.00018881,2]
[373433037,1753007434034,-5419.97096757,0.000189,2]
[373433038,1753007434043,-6759.05656064,0.00018978,2]
[373433039,1753007434053,-150.01,0.0001899,3]
[373433040,1753007434062,-18000.0,0.00019,2]
[373433041,1753007434072,-150.01,0.00019055,3]
[373433042,1753007434082,-243.92,0.00019065,3]
[373433043,1753007434092,-731.78,0.00019065,3]
[373433044,1753007434101,-450.06,0.00019065,3]
[373433045,1753007434111,-214.5637056,0.00019075,2]
[373433046,1753007434121,-839.59621281,0.00019075,2]
[373433047,1753007434130,-230.98123516,0.00019075,2]
[373433048,1753007434140,-525.91036056,0.00019075,2]
[373433049,1753007434149,-476.42619115,0.00019075,2]
[373433050,1753007434158,-7761.24683978,0.00019075,2]
[373433058,1753007437923,-500.0,0.00018058,2]
[373433059,1753007437933,-500.0,0.00018332,2]
[373433061,1753007437944,-500.0,0.00018606,2]
[373433063,1753007437953,-500.0,0.0001888,2]
[373433064,1753007437963,-2164.42490134,0.00019075,2]
[373433065,1753007437975,-2689.48936926,0.00019075,2]
[373433066,1753007437984,-160.0,0.00019075,2]
[373433067,1753007437994,-160.0,0.00019075,2]
[373433068,1753007438004,-160.0,0.00019075,2]
[373433069,1753007438014,-215.71456056,0.00019075,2]
[373433070,1753007438023,-160.0,0.00019075,2]
[373433071,1753007438033,-160.0,0.00019075,2]
[373433072,1753007438043,-160.0,0.00019075,2]
[373433073,1753007438052,-460.0,0.00019089,2]
[373433074,1753007438062,-609.66,0.00019089,2]
[373433075,1753007438071,-460.0,0.00019089,2]
[373433076,1753007438081,-420.0,0.00019114,2]
[373433077,1753007438091,-2828.11698605,0.00019141,2]
[373433078,1753007438102,-2591.8539814,0.00019141,2]
[373433079,1753007438112,-612.65,0.00019151,2]
[373433080,1753007438122,-562.04,0.00019151,2]
[373433082,1753007438131,-460.0,0.00019151,2]
[373433083,1753007438141,-460.0,0.00019153,2]
[373433084,1753007438150,-1071.89,0.00019153,2]
[373433085,1753007438160,-460.0,0.00019153,2]
[373433086,1753007438169,-4435.03,0.00019153,2]
[373433087,1753007438179,-474.32,0.00019153,2]
[373433089,1753007438188,-460.0,0.00019153,2]
[373433090,1753007438198,-591.0,0.00019154,2]
[373433091,1753007438208,-151.0,0.00019154,2]
[373433092,1753007438218,-500.0,0.00019154,2]
[373433093,1753007438234,-470.1,0.00019154,2]
[373433094,1753007438244,-502.68,0.00019154,2]
[373433095,1753007438253,-460.67501914,0.00019154,2]
[373433096,1753007438263,-3.5638402,0.00019154,2]
[373433097,1753007438277,-907.4561598,0.00019154,2]
[373433098,1753007438287,-460.0,0.00019154,2]
[373433099,1753007438296,-460.0,0.00019154,2]
[373433100,1753007438306,-1419.48,0.00019154,2]
[373433101,1753007438315,-460.0,0.00019154,2]
[373433102,1753007438325,-500.0,0.00019155,2]
[373433103,1753007438335,-500.0,0.00019155,2]
[373433104,1753007438349,-247.68461556,0.00019155,2]
[373433105,1753007438358,-151.0,0.00019155,2]
[373433106,1753007438368,-160.0,0.00019165,2]
[373433107,1753007438377,-1446.0077727,0.00019178,2]
[373433108,1753007438391,-3553.9922273,0.00019178,2]
[373433109,1753007438401,-1271.84472331,0.00019178,2]
[373433110,1753007438411,-198.323741,0.00019178,2]
[373433111,1753007438422,-666.0,0.00019178,2]
[373433112,1753007438433,-6759.05656064,0.00019316,2]
[373433113,1753007438442,-609.66,0.00019363,2]
[373433114,1753007438452,-460.0,0.00019363,2]
[373433115,1753007438462,-5419.97096745,0.00019383,2]
[373433116,1753007438472,-487.84,0.00019418,3]
[373433117,1753007438483,-612.65,0.00019425,2]
[373433118,1753007438493,-562.04,0.00019425,2]
[373433119,1753007438504,-460.0,0.00019425,2]
[373433120,1753007438620,-460.0,0.00019427,2]
[373433121,1753007438633,-1071.89,0.00019427,2]
[373433122,1753007438643,-460.0,0.00019427,2]
[373433123,1753007438652,-4435.03,0.00019427,2]
[373433124,1753007438662,-474.32,0.00019427,2]
[373433125,1753007438671,-460.0,0.00019427,2]
[373433126,1753007438681,-591.0,0.00019428,2]
[373433127,1753007438690,-500.0,0.00019428,2]
[373433128,1753007438700,-502.68,0.00019428,2]
[373433129,1753007438709,-911.02,0.00019428,2]
[373433130,1753007438718,-240.17,0.00019428,2]
[373433131,1753007438728,-537.72,0.00019428,2]
[373433132,1753007438737,-1419.48,0.00019428,2]
[373433133,1753007438747,-460.0,0.00019428,2]
[373433134,1753007438756,-500.0,0.00019429,2]
[373433135,1753007438766,-5755.87954345,0.00019579,2]
[373433136,1753007438779,-1003.17701719,0.00019579,2]
[373433137,1753007438789,-5419.97096745,0.00019624,2]
[373433138,1753007438798,-609.66,0.00019637,2]
[373433139,1753007438808,-612.65,0.00019699,2]
[373433140,1753007438817,-562.04,0.00019699,2]
[373433141,1753007438826,-460.0,0.00019699,2]
[373433142,1753007438836,-460.0,0.00019701,2]
[373433143,1753007438846,-1071.89,0.00019701,2]
[373433144,1753007438855,-460.0,0.00019701,2]
[373433145,1753007438864,-4435.03,0.00019701,2]
[373433146,1753007438874,-474.32,0.00019701,2]
[373433147,1753007438883,-460.0,0.00019701,2]
[373433148,1753007438893,-591.0,0.00019702,2]
[373433149,1753007438903,-500.0,0.00019702,2]
[373433150,1753007438912,-502.68,0.00019702,2]
[373433151,1753007438921,-911.02,0.00019702,2]
[373433152,1753007438930,-1419.48,0.00019702,2]
[373433153,1753007438940,-460.0,0.00019702,2]
[373433154,1753007438949,-501.81223864,0.00019703,2]
[373433155,1753007438958,-260.0,0.00019713,2]
[373433156,1753007438968,-338.6083778,0.00019764,2]
[373433157,1753007438978,-6759.05656064,0.00019863,2]
[373433158,1753007438988,-5419.97096745,0.00019866,2]
[373433159,1753007438997,-17294.63724205,0.000199,2]
[373433160,1753007439006,-609.66,0.00019911,2]
[373433161,1753007439016,-612.65,0.00019973,2]
[373433162,1753007439027,-562.04,0.00019973,2]
[373433163,1753007439036,-460.0,0.00019973,2]
[373433164,1753007439046,-460.0,0.00019975,2]
[373433165,1753007439056,-1071.89,0.00019975,2]
[373433166,1753007439066,-221.5,0.00019975,2]
[373433167,1753007439075,-4435.03,0.00019975,2]
[373433168,1753007439084,-474.32,0.00019975,2]
[373433169,1753007439093,-460.0,0.00019975,2]
[373433170,1753007439103,-591.0,0.00019976,2]
[373433171,1753007439112,-500.0,0.00019976,2]
[373433172,1753007439121,-502.68,0.00019976,2]
[373433173,1753007439130,-911.02,0.00019976,2]
[373433174,1753007439139,-1419.48,0.00019976,2]
[373433175,1753007439148,-460.0,0.00019976,2]
[373433176,1753007439157,-30257.81230337,0.0001999,2]
[373433177,1753007439166,-1849.19269782,0.0002,2]
[373433178,1753007439175,-6005.21,0.0002,2]
[373433179,1753007439184,-14346.20478963,0.0002,2]
[373433180,1753007439193,-3194.4852885,0.0002,2]
[373433181,1753007439203,-362.71658097,0.0002,2]
[373433182,1753007439212,-51656.44750083,0.0002,5]
[373433183,1753007439221,-35692.89985663,0.0002,2]
[373433184,1753007439231,-5419.97096745,0.00020107,2]
[373433185,1753007439240,-6759.05656064,0.00020119,2]
[373433186,1753007439251,-609.66,0.00020185,2]
[373433187,1753007439260,-612.65,0.00020247,2]
[373433188,1753007439269,-562.04,0.00020247,2]
[373433189,1753007439281,-460.0,0.00020247,2]
[373433190,1753007439290,-196.53,0.00020249,2]
[373433191,1753007439299,-1071.89,0.00020249,2]
[373433192,1753007439309,-4435.03,0.00020249,2]
[373433193,1753007439318,-474.32,0.00020249,2]
[373433194,1753007439327,-368.98,0.00020249,2]
[373433195,1753007439337,-591.0,0.0002025,2]
[373433196,1753007439351,-502.68,0.0002025,2]
[373433197,1753007439361,-911.02,0.0002025,2]
[373433198,1753007439371,-1419.48,0.0002025,2]
[373433199,1753007439380,-164.91,0.0002025,2]
[373433200,1753007439390,-360.0,0.00020261,2]
[373433201,1753007439400,-215.73715127,0.00020329,3]
[373433202,1753007439409,-5419.97096745,0.00020348,3]
[373433203,1753007439421,-300.02,0.0002036,3]
[373433204,1753007439431,-300.02,0.00020425,3]
[373433205,1753007439441,-487.84,0.00020435,3]
[373433206,1753007439450,-338.60837779,0.00020436,2]
[373433207,1753007439460,-609.66,0.00020459,2]
[373433208,1753007439470,-6759.0565607,0.00020469,2]
[373433209,1753007439480,-612.65,0.00020521,2]
[373433210,1753007439490,-562.04,0.00020521,2]
[373433211,1753007439500,-460.0,0.00020521,2]
[373433212,1753007439509,-1071.89,0.00020523,2]
[373433213,1753007439518,-4435.03,0.00020523,2]
[373433215,1753007439529,-474.32,0.00020523,2]
[373433216,1753007439538,-591.0,0.00020524,2]
[373433217,1753007439548,-502.68,0.00020524,2]
[373433218,1753007439557,-911.02,0.00020524,2]
[373433219,1753007439568,-1419.48,0.00020524,2]
[373433220,1753007439578,-214.5637056,0.0002059,3]
[373433221,1753007439588,-5419.97096745,0.0002059,3]
[373433222,1753007439597,-476.42619115,0.0002059,3]
[373433223,1753007439607,-12615.16111038,0.0002059,3]
[373433224,1753007439616,-160.0,0.0002059,3]
[373433225,1753007439625,-39.08046449,0.0002064,2]
[373433226,1753007439634,-3000.0,0.0002065,2]
[373433227,1753007439643,-3000.0,0.0002066,2]
[373433229,1753007439653,-3000.0,0.0002067,2]
[373433231,1753007439663,-3000.0,0.0002068,2]
[373433232,1753007439672,-3000.0,0.0002069,2]
[373433233,1753007439681,-3000.0,0.000207,2]
[373433235,1753007439690,-3000.0,0.0002071,2]
[373433237,1753007439700,-3000.0,0.0002072,2]
[373433238,1753007439709,-3000.0,0.0002073,2]
[373433239,1753007439718,-609.66,0.00020733,2]
[373433240,1753007439728,-3000.0,0.0002074,2]
[373433241,1753007439737,-115726.97011047,0.0002074,2]
[373433243,1753007439746,-151.0,0.0002074,2]
[373433245,1753007439756,-151.0,0.0002074,2]
[373433246,1753007439765,-151.0,0.0002074,2]
[373433247,1753007439775,-151.0,0.0002074,2]
[373433248,1753007439783,-151.0,0.0002074,2]
[373433249,1753007439792,-3000.0,0.0002075,2]
[373433250,1753007439800,-3000.0,0.0002076,2]
[373433251,1753007439809,-3000.0,0.0002077,2]
[373433252,1753007439818,-500.0,0.00020773,2]
[373433253,1753007439827,-502.06587387,0.00020773,2]
[373433254,1753007439836,-500.0,0.00020773,2]
[373433255,1753007439846,-472.07520401,0.00020773,2]
[373433256,1753007439855,-500.0,0.00020773,2]
[373433257,1753007439865,-501.90140821,0.00020773,2]
[373433258,1753007439874,-500.0,0.00020773,2]
[373433259,1753007439883,-500.0,0.00020773,2]
[373433260,1753007439892,-505.21196279,0.00020773,2]
[373433261,1753007439901,-158.48796273,0.00020773,2]
[373433262,1753007439911,-500.0,0.00020773,2]
[373433263,1753007439920,-165.42282706,0.00020773,2]
[373433264,1753007439929,-158.19723148,0.00020773,2]
[373433265,1753007439940,-500.0,0.00020773,2]
[373433266,1753007439949,-274.06147548,0.00020773,2]
[373433267,1753007439959,-500.0,0.00020773,2]
[373433269,1753007439968,-500.0,0.00020773,2]
[373433271,1753007439977,-500.0,0.00020773,2]
[373433273,1753007439986,-500.94792548,0.00020773,2]
[373433275,1753007439995,-500.0,0.00020773,2]
[373433276,1753007440005,-500.0,0.00020773,2]
[373433278,1753007440014,-500.88694253,0.00020773,2]
[373433280,1753007440024,-501.80415761,0.00020773,2]
[373433282,1753007440034,-500.0,0.00020773,2]
[373433283,1753007440044,-606.86677499,0.00020773,2]
[373433284,1753007440055,-500.0,0.00020773,2]
[373433285,1753007440065,-501.45215473,0.00020773,2]
[373433287,1753007440075,-501.18180365,0.00020773,2]
[373433288,1753007440084,-500.90331733,0.00020773,2]
[373433289,1753007440092,-500.82272692,0.00020773,2]
[373433290,1753007440102,-3000.0,0.0002078,2]
[373433291,1753007440113,-975.68,0.00020788,3]
[373433293,1753007440123,-3000.0,0.0002079,2]
[373433294,1753007440132,-612.65,0.00020795,2]
[373433295,1753007440140,-562.04,0.00020795,2]
[373433296,1753007440148,-460.0,0.00020795,2]
[373433297,1753007440156,-1071.89,0.00020797,2]
[373433298,1753007440166,-4435.03,0.00020797,2]
[373433299,1753007440175,-474.32,0.00020797,2]
[373433300,1753007440184,-591.0,0.00020798,2]
[373433301,1753007440193,-502.68,0.00020798,2]
[373433302,1753007440203,-911.02,0.00020798,2]
[373433303,1753007440214,-1419.48,0.00020798,2]
[373433304,1753007440224,-3000.0,0.000208,2]
[373433305,1753007440235,-890.5,0.00020809,2]
[373433306,1753007440244,-460.0,0.00020809,2]
[373433307,1753007440253,-3000.0,0.0002081,2]
[373433308,1753007440262,-3000.0,0.0002082,2]
[373433309,1753007440271,-3000.0,0.0002083,2]
[373433310,1753007440282,-5419.97096745,0.00020831,4]
[373433311,1753007440291,-3000.0,0.0002084,2]
[373433312,1753007440301,-3000.0,0.0002085,2]
[373433313,1753007440310,-3000.0,0.0002086,2]
[373433314,1753007440319,-510.0,0.00020866,2]
[373433315,1753007440329,-3000.0,0.0002087,2]
[373433316,1753007440340,-3000.0,0.0002088,2]
[373433317,1753007440355,-3000.0,0.0002089,2]
[373433318,1753007440365,-3000.0,0.000209,2]
[373433319,1753007440375,-3000.0,0.0002091,2]
[373433320,1753007440387,-3000.0,0.0002092,2]
[373433321,1753007440397,-3000.0,0.0002093,2]
[373433322,1753007440407,-151.0,0.0002093,2]
[373433323,1753007440420,-152.801717,0.0002093,2]
[373433324,1753007440431,-200.008202,0.0002093,2]
[373433325,1753007440441,-200.008202,0.0002093,2]
[373433326,1753007440452,-3000.0,0.0002094,2]
[373433327,1753007440462,-3000.0,0.0002095,2]
[373433328,1753007440472,-3000.0,0.0002096,2]
[373433329,1753007440481,-151.0,0.0002096,2]
[373433330,1753007440491,-151.0,0.0002096,2]
[373433331,1753007440500,-151.0,0.0002096,2]
[373433332,1753007440510,-151.0,0.0002096,2]
[373433333,1753007440519,-151.0,0.0002096,2]
[373433334,1753007440528,-151.0,0.0002096,2]
[373433335,1753007440537,-151.0,0.0002096,2]
[373433336,1753007440547,-151.0,0.0002096,2]
[373433337,1753007440556,-151.0,0.0002096,2]
[373433338,1753007440566,-3000.0,0.0002097,2]
[373433339,1753007440575,-151.0,0.0002097,2]
[373433340,1753007440583,-232.071285,0.0002097,2]
[373433341,1753007440592,-232.071285,0.0002097,2]
[373433342,1753007440601,-500.0,0.00020973,2]
[373433343,1753007440610,-501.11000924,0.00020973,2]
[373433344,1753007440618,-500.0,0.00020973,2]
[373433345,1753007440628,-503.28821453,0.00020973,2]
[373433346,1753007440637,-500.0,0.00020973,2]
[373433347,1753007440646,-501.91390619,0.00020973,2]
[373433348,1753007440655,-500.0,0.00020973,2]
[373433349,1753007440664,-3000.0,0.0002098,2]
[373433350,1753007440673,-151.0,0.0002098,2]
[373433351,1753007440682,-191.36,0.0002098,2]
[373433352,1753007440691,-3000.0,0.0002099,2]
[373433353,1753007440700,-3000.0,0.00021,2]
[373433354,1753007440709,-103164.3990358,0.00021,4]
[373433355,1753007440719,-609.66,0.00021007,2]
[373433356,1753007440728,-3000.0,0.0002101,2]
[373433357,1753007440737,-3000.0,0.0002102,2]
[373433358,1753007440746,-3000.0,0.0002103,2]
[373433359,1753007440755,-5000.0,0.00021032,2]
[373433360,1753007440764,-3000.0,0.0002104,2]
[373433361,1753007440774,-3000.0,0.0002105,2]
[373433362,1753007440784,-3000.0,0.0002106,2]
[373433363,1753007440793,-500.0,0.00021064,2]
[373433364,1753007440802,-612.65,0.00021069,2]
[373433365,1753007440811,-562.04,0.00021069,2]
[373433366,1753007440820,-598.68,0.00021069,2]
[373433367,1753007440830,-3000.0,0.0002107,2]
[373433368,1753007440838,-1071.89,0.00021071,2]
[373433369,1753007440847,-4435.03,0.00021071,2]
[373433370,1753007440856,-474.32,0.00021071,2]
[373433371,1753007440865,-591.0,0.00021072,2]
[373433372,1753007440874,-502.68,0.00021072,2]
[373433373,1753007440883,-911.02,0.00021072,2]
[373433374,1753007440892,-1419.48,0.00021072,2]
[373433375,1753007440901,-5419.97096745,0.00021072,4]
[373433376,1753007440910,-3000.0,0.0002108,2]
[373433377,1753007440919,-3000.0,0.0002109,2]
[373433378,1753007440928,-3000.0,0.000211,2]
[373433379,1753007440937,-151.0,0.000211,4]
[373433380,1753007440946,-338.60837779,0.00021107,2]
[373433381,1753007440955,-3000.0,0.0002111,2]
[373433382,1753007440964,-3000.0,0.0002112,2]
[373433383,1753007440974,-3000.0,0.0002113,2]
[373433384,1753007440983,-3000.0,0.0002114,2]
[373433385,1753007440992,-3949.502592,0.0002115,2]
[373433386,1753007441000,-609.66,0.00021281,2]
[373433387,1753007441010,-153.0,0.00021288,2]
[373433388,1753007441018,-153.0,0.00021288,2]
[373433389,1753007441028,-153.0,0.00021288,2]
[373433390,1753007441037,-153.0,0.00021288,2]
[373433391,1753007441047,-153.0,0.00021288,2]
[373433392,1753007441055,-153.0,0.00021288,2]
[373433393,1753007441065,-153.0,0.00021288,2]
[373433394,1753007441074,-151.0,0.000213,3]
[373433395,1753007441084,-5419.97096745,0.00021314,5]
[373433396,1753007441093,-1000.0,0.00021321,2]
[373433397,1753007441102,-1000.0,0.00021321,2]
[373433398,1753007441112,-1075.75147067,0.00021321,2]
[373433399,1753007441121,-1000.0,0.00021321,2]
[373433400,1753007441130,-507.96325211,0.00021321,2]
[373433401,1753007441140,-854.25622652,0.00021321,2]
[373433402,1753007441149,-1000.0,0.00021321,2]
[373433403,1753007441159,-500.0,0.00021321,2]
[373433404,1753007441169,-151.0,0.00021321,2]
[373433405,1753007441178,-151.0,0.00021321,2]
[373433406,1753007441188,-153.370387,0.00021321,2]
[373433407,1753007441198,-612.65,0.00021343,2]
[373433408,1753007441207,-562.04,0.00021343,2]
[373433409,1753007441314,-151.0,0.00021344,2]
[373433410,1753007441324,-151.0,0.00021344,2]
[373433411,1753007441334,-151.0,0.00021344,2]
[373433412,1753007441347,-151.0,0.00021344,2]
[373433413,1753007441357,-151.0,0.00021345,2]
[373433414,1753007441367,-151.0,0.00021345,2]
[373433415,1753007441376,-200.008202,0.00021345,2]
[373433416,1753007441387,-200.008202,0.00021345,2]
[373433417,1753007441396,-1071.89,0.00021345,2]
[373433418,1753007441406,-4435.03,0.00021345,2]
[373433419,1753007441415,-474.32,0.00021345,2]
[373433420,1753007441427,-591.0,0.00021346,2]
[373433421,1753007441436,-502.68,0.00021346,2]
[373433422,1753007441447,-911.02,0.00021346,2]
[373433423,1753007441456,-1419.48,0.00021346,2]
[373433424,1753007441466,-151.0,0.00021354,2]
[373433425,1753007441475,-242.197086,0.00021354,2]
[373433426,1753007441485,-242.197086,0.00021354,2]
[373433427,1753007441494,-151.0,0.00021354,2]
[373433428,1753007441503,-560.0,0.00021356,2]
[373433429,1753007441514,-151.0,0.00021441,2]
[373433430,1753007441523,-232.071285,0.00021441,2]
[373433431,1753007441533,-232.071285,0.00021441,2]
[373433432,1753007441543,-2212.78357467,0.000215,2]
[373433433,1753007441552,-1017.94766044,0.00021521,2]
[373433434,1753007441561,-500.0,0.00021521,2]
[373433435,1753007441571,-151.0,0.00021524,2]
[373433436,1753007441580,-151.0,0.00021524,2]
[373433437,1753007441589,-151.0,0.00021524,2]
[373433438,1753007441599,-151.0,0.00021524,2]
[373433439,1753007441608,-151.0,0.00021524,2]
[373433440,1753007441617,-151.0,0.00021524,2]
[373433441,1753007441627,-215.0738,0.00021524,2]
[373433442,1753007441636,-151.0,0.00021524,2]
[373433443,1753007441646,-151.0,0.00021524,2]
[373433444,1753007441656,-151.0,0.00021524,2]
[373433445,1753007441665,-151.0,0.00021524,2]
[373433446,1753007441675,-151.0,0.00021524,2]
[373433447,1753007441685,-151.0,0.00021524,2]